bitfinex/quotes_ETHUSD_20250909
["timestamp","ask_amount","ask_price","bid_price","bid_amount"]
[1757427245099,0.4457,4332.3,4331.7,9.15]
[1757427245303,0.817,4331.8,4331.7,11.45756245]
[1757427245500,1.1086,4331.8,4331.7,4.772]
[1757427245705,1.5543,4331.8,4331.7,11.45756245]
[1757427245900,1.5543,4331.8,4331.7,9.149]
[1757427246316,3.63896506,4331.8,4331.7,1.772]
[1757427246543,3.63896506,4331.8,4331.7,6.147]
[1757427247582,1.1086,4331.8,4331.7,6.147]
[1757427247947,1.1086,4331.8,4330.8,7.119]
[1757427247948,2.30882896,4331.2,4331.1,0.82695521]
[1757427248162,0.792,4331.1,4330.5,2.30916031]
[1757427248357,0.792,4331.1,4330.6,4.373]
[1757427248590,0.792,4331.1,4330.7,4.373]
[1757427248785,0.792,4330.7,4330.4,4.772]
[1757427249089,0.792,4330.7,4330.6,3.0]
[1757427249298,0.792,4330.7,4330.6,5.30914884]
[1757427249500,1.2377,4331.4,4330.7,2.30909552]
[1757427249691,1.2377,4331.4,4330.8,4.372]
[1757427249896,1.2377,4331.4,4330.9,5.30894732]
[1757427250068,1.2377,4331.4,4331.0,4.372]
[1757427250598,0.026,4331.8,4331.3,2.30873494]
[1757427250810,0.026,4331.8,4331.4,4.372]
[1757427251179,0.4717,4331.8,4331.4,4.372]
[1757427251380,0.792,4331.7,4331.4,4.372]
[1757427251626,0.792,4331.7,4331.4,6.68071949]
[1757427252394,0.026,4331.8,4331.6,2.30860641]
[1757427252594,0.818,4331.8,4331.7,4.369]
[1757427252809,0.026,4331.8,4331.7,4.369]
[1757427253516,0.818,4331.8,4331.7,9.67756245]
[1757427253719,0.818,4331.8,4331.7,9.98626245]
[1757427254083,0.026,4331.8,4331.7,12.95485473]
[1757427254880,0.026,4331.8,4331.7,14.21470994]
[1757427255323,0.026,4331.8,4331.7,12.95485473]
[1757427255834,0.026,4331.8,4331.7,6.69615473]
[1757427255995,1.1096,4331.8,4331.7,3.0]
[1757427256182,1.6705,4331.8,4331.7,3.0]
[1757427256528,3.3649,4331.8,4331.7,7.365]
[1757427257135,1.6705,4331.8,4331.7,7.365]
[1757427257293,3.3649,4331.8,4331.7,7.364]
[1757427257497,1.6705,4331.8,4331.7,7.364]
[1757427257678,1.6705,4331.8,4330.7,0.82623611]
[1757427257679,3.42075,4331.8,4330.7,0.82623611]
[1757427257883,5.72930243,4331.8,4330.9,2.30898889]
[1757427258119,3.42075,4331.8,4330.9,5.30898889]
[1757427258300,0.792,4331.6,4330.4,2.59723611]
[1757427258534,0.792,4331.4,4330.5,4.362]
[1757427258731,0.792,4331.2,4330.6,3.0]
[1757427259028,0.59350491,4331.7,4330.4,1.771]
[1757427259029,0.792,4330.6,4330.4,1.771]
[1757427259186,5.53290217,4330.5,4330.4,1.771]
[1757427259382,5.53290217,4330.5,4330.4,6.133]
[1757427259696,3.10152215,4329.9,4329.8,0.027]
[1757427260124,5.53322215,4329.9,4329.8,0.027]
[1757427260316,1.0836,4329.9,4329.8,7.388]
[1757427260515,0.792,4329.9,4329.8,7.388]
[1757427261083,0.792,4329.9,4329.8,9.6975755]
[1757427261427,0.792,4329.9,4329.8,8.53485755]
[1757427261630,0.792,4329.9,4329.8,9.6975755]
[1757427261829,0.792,4329.9,4329.8,7.388]
[1757427262046,0.792,4329.9,4329.8,9.6975755]
[1757427262831,0.4457,4330.6,4329.8,9.6975755]
[1757427262832,0.792,4330.5,4329.9,3.0]
[1757427263015,0.792,4330.5,4330.1,3.0]
[1757427263327,0.792,4330.5,4330.3,3.0]
[1757427263526,0.792,4330.3,4329.8,2.33656628]
[1757427263830,0.792,4330.1,4330.0,3.0]
[1757427264014,1.5293,4330.1,4330.0,3.0]
[1757427265124,3.10152215,4329.9,4329.8,0.027]
[1757427265434,3.11810209,4329.9,4329.8,0.027]
[1757427265592,5.54980209,4329.9,4329.8,0.027]
[1757427265944,6.31914709,4329.9,4329.8,0.027]
[1757427267404,4.00962494,4329.9,4329.8,0.027]
[1757427267606,3.83882215,4329.9,4329.8,0.027]
[1757427268219,1.5293,4329.9,4329.8,0.027]
[1757427268626,3.83882215,4329.9,4329.8,0.027]
[1757427268938,1.5293,4329.9,4329.8,0.027]
[1757427269137,3.83882215,4329.9,4329.8,0.027]
[1757427269556,3.83802215,4329.9,4329.8,0.027]
[1757427269709,1.5285,4329.9,4329.8,0.027]
[1757427269912,2.30914607,4330.7,4329.8,0.027]
[1757427269913,0.4457,4330.7,4329.8,0.027]
[1757427270229,2.30921036,4330.5,4329.8,0.027]
[1757427270392,2.30935012,4330.3,4329.8,0.027]
[1757427270596,2.30916267,4330.6,4329.8,3.027]
[1757427270830,0.65971,4330.7,4329.8,5.3365727]
[1757427271031,0.65971,4330.7,4329.8,3.027]
[1757427271237,2.30896255,4331.0,4330.2,2.30935246]
[1757427271449,1.6944,4331.5,4330.2,2.30935246]
[1757427271450,2.30877565,4331.3,4330.4,2.30925549]
[1757427271596,0.026,4331.8,4330.9,0.2989]
[1757427271796,2.33454839,4331.8,4331.0,4.351]
[1757427272103,0.026,4331.8,4331.1,2.30888227]
[1757427272298,0.1152,4331.1,4331.0,4.351]
[1757427272503,0.1152,4331.1,4330.6,3.0]
[1757427272742,0.792,4331.3,4330.8,3.0]
[1757427272939,0.4485,4331.7,4330.9,2.30898889]
[1757427273240,2.30874222,4331.4,4331.0,4.35]
[1757427273441,2.30874222,4331.4,4330.6,1.6456]
[1757427273442,0.792,4331.3,4331.2,3.0]
[1757427273611,0.792,4331.1,4331.0,4.349]
[1757427273818,1.1056,4331.1,4331.0,4.349]
[1757427274001,0.792,4331.1,4331.0,4.349]
[1757427274525,0.792,4331.5,4331.0,4.349]
[1757427274836,3.1265241,4331.8,4331.0,6.65792773]
[1757427275039,3.1265241,4331.8,4331.0,8.30352773]
[1757427275237,0.792,4331.6,4331.0,5.9946]
[1757427275542,0.792,4331.6,4331.0,4.349]
[1757427275842,0.792,4331.5,4331.0,4.349]
[1757427276537,0.4485,4331.4,4331.0,4.349]
[1757427277140,0.792,4331.0,4330.4,4.6456]
[1757427277439,0.792,4331.2,4330.7,3.0]
[1757427277595,0.792,4331.2,4330.6,3.0]
[1757427277596,0.792,4331.2,4330.8,2.30903037]
[1757427277804,0.792,4331.5,4330.9,4.345]
[1757427278133,0.4745,4331.8,4330.9,4.345]
[1757427278134,0.792,4331.3,4330.9,4.345]
[1757427278302,0.792,4331.3,4330.4,1.6456]
[1757427278303,0.792,4330.9,4330.4,2.30924774]
[1757427278503,0.792,4330.9,4330.6,3.0]
[1757427278726,3.1008832,4331.1,4330.6,3.0]
[1757427278898,0.792,4331.1,4330.6,3.0]
[1757427279100,1.2405,4331.1,4330.6,3.0]
[1757427279320,3.10092533,4331.1,4330.6,3.0]
[1757427279639,0.792,4330.9,4330.6,3.0]
[1757427279810,3.10114897,4330.6,4330.3,1.772]
[1757427280009,1.2405,4330.5,4330.4,7.343]
[1757427280332,3.86330217,4330.5,4330.4,7.343]
[1757427280507,1.5541,4330.5,4330.4,7.343]
[1757427280700,0.792,4330.5,4330.4,9.2875]
[1757427280940,0.792,4331.5,4330.6,2.30910165]
[1757427281137,0.4485,4331.6,4330.6,2.30910165]
[1757427281138,3.1007783,4331.3,4330.6,2.30910165]
[1757427281306,0.792,4331.3,4330.7,2.30909124]
[1757427281646,2.30874202,4331.4,4330.8,4.341]
[1757427281841,0.792,4331.3,4330.8,4.341]
[1757427282142,0.792,4331.5,4330.9,2.30898889]
[1757427282341,0.792,4331.5,4331.1,2.30884122]
[1757427282499,0.026,4331.8,4331.2,5.9866]
[1757427282705,0.026,4331.8,4331.4,0.2989]
[1757427282918,0.818,4331.8,4331.4,0.2989]
[1757427283102,0.026,4331.8,4331.4,0.2989]
[1757427283300,0.818,4331.8,4331.4,0.2989]
[1757427283740,0.818,4331.8,4331.4,2.60760941]
[1757427283938,0.818,4331.8,4331.4,0.2989]
[1757427284347,0.026,4331.8,4331.5,2.13368669]
[1757427284587,0.026,4331.8,4331.7,5.60746245]
[1757427285083,0.026,4331.8,4331.7,7.71806245]
[1757427285783,0.818,4331.8,4331.7,7.25306245]
[1757427285944,0.026,4331.8,4331.7,7.25306245]
[1757427286146,0.026,4331.8,4331.7,7.69772907]
[1757427286481,0.818,4331.8,4331.7,7.69772907]
[1757427286685,0.818,4331.8,4331.7,3.2989]
[1757427286846,0.818,4331.8,4331.7,3.0]
[1757427287045,1.1316,4331.8,4331.7,3.0]
[1757427287245,1.1316,4331.8,4331.7,4.336]
[1757427287476,1.5801,4331.8,4331.7,4.335]
[1757427287842,0.818,4331.8,4331.7,4.335]
[1757427288278,1.1316,4331.8,4331.7,4.335]
[1757427288988,1.1316,4331.8,4331.1,1.772]
[1757427289186,0.9072,4331.4,4331.3,3.0]
[1757427289386,0.792,4331.3,4331.1,1.772]
[1757427289592,0.9072,4331.3,4331.2,7.333]
[1757427290183,0.9072,4331.3,4331.2,9.64182896]
[1757427290812,0.9072,4331.3,4331.2,11.58632896]
[1757427290987,0.818,4331.8,4331.7,2.30856245]
[1757427291185,0.818,4331.8,4331.7,7.332]
[1757427291778,0.818,4331.8,4331.7,7.331]
[1757427291979,1.1316,4331.8,4331.7,7.331]
[1757427292279,0.818,4331.8,4331.7,7.6299]
[1757427292477,0.04,4332.9,4331.8,5.30850916]
[1757427292814,0.04,4332.9,4332.2,6.13453212]
[1757427292985,0.04,4332.9,4332.2,41.70726226]
[1757427293199,0.04,4332.9,4332.2,42.16299601]
[1757427294031,0.04,4332.9,4332.2,12.16199601]
[1757427294183,0.04,4332.9,4332.2,13.83219087]
[1757427295694,0.0002,4332.3,4332.2,15.0673609]
[1757427296902,0.0002,4332.3,4332.2,13.83219087]
[1757427297221,0.0002,4332.3,4332.2,43.83219087]
[1757427297422,0.0002,4332.3,4332.2,45.06686057]
[1757427297806,0.0002,4332.3,4332.2,43.83219087]
[1757427298122,0.0002,4332.3,4332.2,43.82819087]
[1757427299234,0.0002,4332.3,4332.2,45.06286789]
[1757427300429,0.4485,4333.7,4332.3,3.0]
[1757427300611,0.792,4333.6,4333.5,2.30760355]
[1757427300932,0.4485,4334.2,4333.7,2.30749705]
[1757427301131,0.4485,4334.7,4333.7,9.65257202]
[1757427301292,0.792,4334.4,4333.7,11.57399705]
[1757427301492,0.3386,4333.8,4333.7,3.0]
[1757427301789,0.025,4333.8,4333.7,9.62849705]
[1757427302189,0.3395,4333.8,4333.7,9.62849705]
[1757427302390,1.5701,4333.8,4333.7,9.62849705]
[1757427303261,1.5701,4333.8,4333.7,7.321]
[1757427303589,1.1315,4333.8,4333.7,9.62649705]
[1757427303868,0.817,4333.8,4333.7,9.62649705]
[1757427304071,1.5701,4333.8,4333.7,3.0]
[1757427304275,1.90066,4333.8,4333.7,7.319]
[1757427304460,3.2656,4333.8,4333.7,9.62649705]
[1757427304624,1.5701,4333.8,4333.7,9.62649705]
[1757427304825,1.5701,4333.8,4333.7,7.319]
[1757427305123,3.2656,4333.8,4333.7,7.319]
[1757427305323,3.2656,4333.8,4333.7,7.318]
[1757427305522,0.792,4333.7,4333.2,1.771]
[1757427305727,1.1065,4333.3,4333.2,1.771]
[1757427306061,3.2406,4333.3,4333.2,9.088]
[1757427306228,3.2406,4333.3,4332.5,1.771]
[1757427306229,0.792,4333.2,4332.5,1.771]
[1757427306440,0.792,4332.6,4332.5,4.07913618]
[1757427306652,0.792,4333.3,4332.5,6.3877]
[1757427306848,0.792,4333.3,4333.1,2.30780422]
[1757427307065,0.792,4333.3,4332.5,6.3877]
[1757427307066,0.792,4333.3,4333.2,6.62376331]
[1757427307265,1.5451,4333.3,4333.2,4.316]
[1757427307633,1.5451,4333.3,4333.2,6.62376331]
[1757427308032,1.1065,4333.3,4333.2,6.62376331]
[1757427308228,0.792,4333.3,4333.2,9.62376331]
[1757427308558,0.026,4333.8,4333.6,2.30754829]
[1757427308761,0.026,4333.8,4333.7,4.315]
[1757427308933,0.026,4333.8,4333.7,9.62249705]
[1757427309128,0.7791,4333.8,4333.7,3.0]
[1757427309341,3.2666,4333.8,4333.7,7.314]
[1757427310332,6.13544659,4333.8,4333.7,4.313]
[1757427310768,0.792,4333.5,4333.4,6.084]
[1757427310975,1.5451,4333.5,4333.4,6.084]
[1757427311272,1.1065,4333.5,4333.4,6.084]
[1757427311438,1.5451,4333.5,4333.4,6.084]
[1757427311642,5.99220974,4333.5,4333.4,6.084]
[1757427311989,1.55050619,4333.5,4333.4,4.313]
[1757427312291,2.022,4333.5,4333.4,4.313]
[1757427312434,2.7751,4333.5,4332.8,5.30797093]
[1757427312631,2.7751,4333.5,4333.0,3.0]
[1757427312935,2.7751,4333.5,4333.2,3.0]
[1757427312936,0.792,4333.3,4333.2,3.0]
[1757427313140,1.1065,4333.3,4333.2,3.0]
[1757427313459,1.1065,4333.3,4333.1,2.3077792]
[1757427313639,0.9072,4333.2,4333.1,2.3077792]
[1757427313834,0.9072,4333.2,4333.1,7.31]
[1757427314042,0.9072,4333.2,4333.1,3.0]
[1757427314043,1.6603,4333.2,4333.1,3.0]
[1757427314297,3.3558,4333.2,4333.1,7.31]
[1757427314436,3.93738,4333.2,4333.1,7.31]
[1757427314851,3.93738,4333.2,4333.1,3.0]
[1757427315182,2.3082214,4332.4,4331.8,0.84841755]
[1757427315363,0.792,4332.7,4332.2,4.309]
[1757427315748,0.792,4333.0,4332.2,8.26938495]
[1757427315950,0.792,4333.0,4332.3,2.30822513]
[1757427316291,1.55777176,4333.0,4332.4,5.30814227]
[1757427316457,1.55777176,4333.0,4332.6,3.0]
[1757427316859,1.1065,4332.7,4332.1,0.002]
[1757427317055,0.792,4332.4,4332.3,3.0]
[1757427317256,0.792,4332.4,4332.2,4.307]
[1757427317257,0.7531,4332.4,4332.2,4.307]
[1757427317461,0.4386,4332.3,4332.2,4.307]
[1757427317683,0.9072,4332.2,4332.1,0.002]
[1757427317995,3.65409601,4332.2,4332.1,0.002]
[1757427318151,5.99967601,4332.2,4332.1,0.002]
[1757427318556,1.99588,4332.2,4332.1,0.002]
[1757427318793,0.4386,4333.0,4332.1,0.002]
[1757427318966,2.74648169,4333.0,4332.2,2.30829601]
[1757427319295,2.74648169,4333.0,4332.3,4.306]
[1757427319499,0.792,4332.9,4332.4,2.30817639]
[1757427319796,0.792,4332.9,4332.3,6.61423106]
[1757427319992,0.792,4332.9,4332.3,4.306]
[1757427320193,0.792,4332.8,4332.3,4.306]
[1757427320586,0.792,4333.0,4332.4,2.30818454]
[1757427320776,3.09988212,4333.0,4332.3,6.61423571]
[1757427320970,0.792,4333.0,4332.3,4.306]
[1757427321175,0.792,4333.0,4332.4,3.0]
[1757427321406,1.23,4333.3,4332.9,0.3007]
[1757427321704,1.23,4333.3,4333.0,4.32807869]
[1757427322008,2.0212,4333.3,4333.2,2.30776331]
[1757427322229,1.2292,4333.3,4333.2,2.30776331]
[1757427322529,1.2292,4333.3,4333.2,4.26056331]
[1757427322729,1.2292,4333.3,4333.2,1.9528]
[1757427322930,1.2292,4333.3,4332.6,4.6521]
[1757427323232,0.792,4333.2,4333.0,2.30781863]
[1757427323430,0.792,4333.2,4333.1,6.61081657]
[1757427323636,0.792,4333.2,4333.1,8.56361657]
[1757427323799,0.792,4333.2,4333.1,9.2558]
[1757427324395,0.792,4333.2,4332.6,3.0]
[1757427324612,0.792,4333.2,4333.1,0.3007]
[1757427324819,0.792,4333.2,4333.1,4.6017]
[1757427325024,0.792,4333.2,4333.1,6.90951657]
[1757427325732,0.792,4333.2,4333.1,8.56161657]
[1757427325934,0.792,4333.2,4333.1,4.301]
[1757427326408,0.792,4333.2,4332.8,0.002]
[1757427326609,0.3145,4332.9,4332.8,0.002]
[1757427326810,0.3145,4332.9,4332.8,7.301]
[1757427327010,0.7531,4332.9,4332.8,3.002]
[1757427327215,1.86916,4332.9,4332.8,0.002]
[1757427327543,5.88916304,4332.9,4332.8,0.002]
[1757427327711,5.8725831,4332.9,4332.8,0.002]
[1757427329294,6.08704505,4332.9,4332.8,0.002]
[1757427330437,6.2617482,4332.9,4332.8,0.002]
[1757427330640,3.10029601,4332.2,4332.1,0.002]
[1757427330802,7.41287595,4332.2,4332.1,0.002]
[1757427331003,9.84489601,4332.2,4332.1,0.002]
[1757427332543,10.05914431,4332.2,4332.1,0.002]
[1757427332740,10.05914431,4332.2,4331.7,0.002]
[1757427332741,3.10045587,4331.9,4331.8,1e-08]
[1757427332955,6.11703581,4331.9,4331.8,1e-08]
[1757427333250,8.71220417,4331.9,4331.8,1e-08]
[1757427333421,13.00720417,4331.9,4331.8,1e-08]
[1757427335402,8.71220417,4331.9,4331.8,1e-08]
[1757427335601,13.33026417,4331.9,4331.8,1e-08]
[1757427336228,13.11601587,4331.9,4331.8,1e-08]
[1757427336450,13.32981181,4331.9,4331.8,1e-08]
[1757427336959,11.02135594,4331.9,4331.1,0.04]
[1757427337104,3.792,4331.5,4331.1,1e-08]
[1757427337441,6.10082896,4331.2,4331.1,1e-08]
[1757427337645,6.6083249,4331.2,4331.1,1e-08]
[1757427337847,8.7121249,4331.2,4331.1,1e-08]
[1757427338314,8.49832896,4331.2,4331.1,1e-08]
[1757427338506,3.03196278,4331.2,4331.1,1e-08]
[1757427338705,6.6164089,4331.2,4331.1,1e-08]
[1757427338941,6.89352896,4331.2,4331.1,1e-08]
[1757427339140,7.68552896,4331.2,4331.1,1e-08]
[1757427339506,7.39182896,4331.2,4331.1,1e-08]
[1757427339727,7.68552896,4331.2,4331.1,1e-08]
[1757427339932,9.12095466,4331.2,4331.1,1e-08]
[1757427340339,8.39125466,4331.2,4331.1,1e-08]
[1757427340641,7.39182896,4331.2,4331.1,1e-08]
[1757427340870,5.081,4331.2,4331.1,0.30050001]
[1757427341208,7.38982896,4331.2,4331.1,1e-08]
[1757427341856,7.38982896,4331.2,4331.1,0.30050001]
[1757427342162,7.38882896,4331.2,4331.1,0.30050001]
[1757427342326,3.10082896,4331.2,4331.1,1e-08]
[1757427342508,7.38882896,4331.2,4331.1,1e-08]
[1757427342708,8.65228568,4331.2,4331.1,1e-08]
[1757427343527,9.08828568,4331.2,4331.1,1e-08]
[1757427343730,10.75608568,4331.2,4331.1,1e-08]
[1757427344641,4.36428568,4331.2,4331.1,1e-08]
[1757427344844,8.66786562,4331.2,4331.1,1e-08]
[1757427345070,8.65128568,4331.2,4331.1,1e-08]
[1757427345256,9.08728568,4331.2,4331.1,1e-08]
[1757427345600,10.75508568,4331.2,4331.1,1e-08]
[1757427346201,9.08728568,4331.2,4331.1,1e-08]
[1757427346493,9.08728568,4331.2,4330.1,0.04]
[1757427346494,0.792,4330.5,4330.1,0.04]
[1757427346794,2.30915452,4330.6,4330.1,0.04]
[1757427346795,3.10136215,4330.2,4330.1,0.04]
[1757427346955,3.39506215,4330.2,4330.1,0.04]
[1757427347175,1.228,4330.2,4330.1,0.04]
[1757427347361,5.076,4330.2,4330.1,0.04]
[1757427347563,5.076,4330.2,4330.1,0.3405]
[1757427347891,2.30893558,4331.0,4330.1,2.5047]
[1757427348096,2.30916275,4330.6,4330.1,2.5047]
[1757427348403,0.792,4330.4,4330.2,2.1642]
[1757427348577,0.792,4330.4,4330.2,1.7249]
[1757427348905,0.792,4330.2,4330.1,0.04]
[1757427349201,5.075,4330.5,4330.3,0.3005]
[1757427349687,5.075,4330.5,4330.1,0.04]
[1757427349688,0.792,4330.3,4330.1,0.04]
[1757427349846,3.10136215,4330.2,4330.1,0.04]
[1757427350250,0.792,4330.2,4330.1,0.3405]
[1757427350451,0.792,4330.2,4330.1,2.0654]
[1757427350687,3.0,4331.7,4330.3,2.30928516]
[1757427350894,1.772,4331.3,4330.4,2.1642]
[1757427351094,0.792,4330.8,4330.4,2.1642]
[1757427351291,0.792,4330.8,4330.7,0.3005]
[1757427351496,3.1010422,4330.8,4330.7,2.0254]
[1757427352298,3.1010422,4330.8,4330.1,0.04]
[1757427352299,0.792,4330.8,4330.1,0.04]
[1757427352518,0.792,4330.2,4330.1,0.04]
[1757427352653,3.10136215,4330.2,4330.1,0.04]
[1757427353299,5.072,4330.2,4330.1,0.04]
[1757427353714,7.67506215,4330.2,4330.1,0.04]
[1757427354513,0.792,4330.2,4330.1,2.0654]
[1757427354822,5.071,4330.2,4330.1,2.0654]
[1757427354975,7.38036215,4330.2,4330.1,0.04]
[1757427355176,9.02529837,4330.2,4330.1,0.04]
[1757427355422,8.58929837,4330.2,4330.1,0.04]
[1757427356408,9.02529837,4330.2,4330.1,0.04]
[1757427356776,10.90740756,4330.2,4330.1,0.04]
[1757427357922,4.52460756,4330.2,4330.1,0.04]
[1757427358075,5.98423622,4330.2,4330.1,0.04]
[1757427358276,0.5074,4330.7,4330.1,0.3405]
[1757427358510,4.276,4330.6,4330.1,2.0654]
[1757427358700,3.10131872,4330.3,4330.2,1.7249]
[1757427358873,5.068,4330.3,4330.2,2.0254]
[1757427359337,0.792,4330.3,4330.2,2.0254]
[1757427359624,6.58404266,4330.8,4330.2,2.4647]
[1757427359869,4.275,4330.8,4330.2,2.4647]
[1757427360049,2.30910975,4330.7,4330.2,2.0254]
[1757427360369,5.067,4330.9,4330.3,2.1642]
[1757427360669,0.792,4330.9,4330.8,0.3005]
[1757427360966,1.772,4331.5,4330.8,2.4647]
[1757427361277,2.65213476,4332.1,4331.0,2.30893558]
[1757427361569,1.772,4332.4,4330.9,2.18728988]
[1757427361570,0.1152,4331.0,4330.9,2.1642]
[1757427361715,0.792,4330.9,4330.4,1.5489]
[1757427361921,0.792,4330.9,4330.5,1.5489]
[1757427362235,0.792,4330.6,4330.5,1.5489]
[1757427362433,2.30914203,4330.7,4330.1,1.5889]
[1757427362767,0.792,4330.6,4330.1,1.5889]
[1757427362969,3.10114884,4330.6,4330.5,0.29]
[1757427363171,3.10112429,4330.7,4330.2,1.5489]
[1757427363376,0.9072,4330.2,4330.1,0.04]
[1757427363794,0.9072,4330.2,4330.1,1.8789]
[1757427363940,0.9072,4330.2,4330.1,0.33]
[1757427364145,3.21656215,4330.2,4330.1,0.04]
[1757427364347,4.54312521,4330.2,4330.1,0.04]
[1757427364769,6.14032521,4330.2,4330.1,0.042]
[1757427364970,6.46745273,4330.2,4330.1,0.042]
[1757427365182,6.46745273,4330.2,4329.4,0.002]
[1757427365183,3.10173553,4329.5,4329.4,0.002]
[1757427365402,0.792,4329.2,4329.1,1e-08]
[1757427365544,4.65137337,4329.2,4329.1,1e-08]
[1757427365881,8.8226836,4329.2,4329.1,1e-08]
[1757427366183,3.31660582,4329.2,4329.1,1e-08]
[1757427366388,5.062,4329.2,4329.1,1.83890001]
[1757427367148,7.37189559,4329.2,4329.1,1.83890001]
[1757427367447,7.58638647,4329.2,4329.1,0.29000001]
[1757427367670,7.58638647,4329.2,4329.1,1e-08]
[1757427367880,5.27649088,4329.2,4329.1,1e-08]
[1757427368065,9.06660523,4329.2,4329.1,1e-08]
[1757427368594,8.75320523,4329.2,4329.1,1e-08]
[1757427368812,5.27649088,4329.2,4329.1,1e-08]
[1757427369106,7.58638647,4329.2,4329.1,1e-08]
[1757427369797,7.89978647,4329.2,4329.1,1e-08]
[1757427370001,8.34378647,4329.2,4329.1,1e-08]
[1757427370150,7.89978647,4329.2,4329.1,1e-08]
[1757427370351,9.54194461,4329.2,4329.1,1e-08]
[1757427370699,11.13914461,4329.2,4329.1,1e-08]
[1757427371205,9.54194461,4329.2,4329.1,1e-08]
[1757427371497,8.78154461,4329.2,4329.1,1e-08]
[1757427371653,0.21449088,4329.2,4329.1,0.29000001]
[1757427371845,2.30968218,4329.6,4329.1,1.83890001]
[1757427372046,2.30968218,4329.6,4329.2,1.5489]
[1757427372047,0.21449088,4329.6,4329.2,1.5489]
[1757427372284,2.30974474,4329.5,4329.3,1.5489]
[1757427372487,0.1152,4329.3,4329.1,1e-08]
[1757427372682,0.21449088,4329.6,4329.5,0.29]
[1757427372884,3.289,4330.0,4329.5,0.7358]
[1757427373101,0.025,4330.8,4329.6,0.4458]
[1757427373351,2.30943966,4330.1,4329.6,1.9947]
[1757427373564,2.30943966,4330.1,4329.7,1.5489]
[1757427373801,2.52369454,4330.2,4329.7,1.5489]
[1757427373951,0.1797,4330.7,4330.1,0.29]
[1757427374155,2.30930751,4330.4,4330.1,0.29]
[1757427374402,0.792,4330.4,4330.1,0.29]
[1757427374557,3.21665481,4330.1,4329.8,1.5489]
[1757427374893,3.10152215,4329.9,4329.8,1.5489]
[1757427375063,0.792,4329.7,4329.2,3.3209]
[1757427375401,0.792,4329.7,4329.1,1e-08]
[1757427375402,0.792,4329.3,4329.1,1e-08]
[1757427375608,3.10189559,4329.2,4329.1,1e-08]
[1757427376183,0.792,4329.2,4329.1,1e-08]
[1757427376365,3.10189559,4329.2,4329.1,1e-08]
[1757427376779,3.85929559,4329.2,4329.1,1e-08]
[1757427377103,4.91908603,4329.2,4329.1,1e-08]
[1757427377303,4.90250609,4329.2,4329.1,1e-08]
[1757427377654,6.49970609,4329.2,4329.1,1e-08]
[1757427378281,6.71382302,4329.2,4329.1,1e-08]
[1757427378682,5.11662302,4329.2,4329.1,1e-08]
[1757427378846,6.71382302,4329.2,4329.1,1e-08]
[1757427380835,7.82722302,4329.2,4329.1,1e-08]
[1757427381020,3.56722302,4329.2,4329.1,1e-08]
[1757427381218,8.63480296,4329.2,4329.1,1e-08]
[1757427381418,8.61822302,4329.2,4329.1,1e-08]
[1757427381718,7.57501252,4329.2,4329.1,1e-08]
[1757427382420,8.33241252,4329.2,4329.1,1e-08]
[1757427382822,7.88841252,4329.2,4329.1,1e-08]
[1757427383023,3.31601252,4329.2,4329.1,1e-08]
[1757427383230,8.34799246,4329.2,4329.1,1e-08]
[1757427383417,9.57439172,4329.2,4329.1,0.00200001]
[1757427384128,11.17159172,4329.2,4329.1,0.00200001]
[1757427384349,9.13039172,4329.2,4329.1,0.00200001]
[1757427384641,8.81599172,4329.2,4329.1,0.00200001]
[1757427384805,4.87239172,4329.2,4329.1,0.00200001]
[1757427385002,6.50495447,4329.2,4329.1,0.00200001]
[1757427385237,4.256,4329.2,4329.1,1.84090001]
[1757427385439,5.048,4329.2,4329.1,1.84090001]
[1757427385618,7.35789559,4329.2,4329.1,1.84090001]
[1757427386009,7.35789559,4329.2,4329.1,0.00200001]
[1757427387108,0.792,4329.2,4329.1,0.29200001]
[1757427387308,7.35689559,4329.2,4329.1,1.84090001]
[1757427387942,7.35689559,4329.2,4329.1,0.00200001]
[1757427388128,8.81416416,4329.2,4329.1,0.00200001]
[1757427388446,9.25816416,4329.2,4329.1,0.00200001]
[1757427388654,6.18986857,4329.2,4329.1,0.00200001]
[1757427388809,7.66929559,4329.2,4329.1,0.00200001]
[1757427389143,8.11329559,4329.2,4329.1,0.00200001]
[1757427389346,8.32724788,4329.2,4329.1,0.00200001]
[1757427389849,17.04444788,4329.2,4329.1,0.00200001]
[1757427390237,17.04437735,4329.2,4329.1,0.00200001]
[1757427390572,16.86271022,4329.2,4329.1,0.00200001]
[1757427390786,3.10200231,4329.0,4328.8,0.027]
[1757427390940,7.35400231,4329.0,4328.8,0.027]
[1757427391140,9.92248407,4329.0,4328.8,0.027]
[1757427391443,8.32528407,4329.0,4328.8,0.027]
[1757427391643,7.91570407,4329.0,4328.8,0.027]
[1757427391864,8.66320407,4329.0,4328.8,0.027]
[1757427392173,10.17070407,4329.0,4328.8,0.027]
[1757427392382,0.792,4328.9,4328.6,0.002]
[1757427392533,3.1021624,4328.7,4328.6,0.002]
[1757427392733,5.1939088,4328.7,4328.6,0.002]
[1757427392933,7.1323088,4328.7,4328.6,0.002]
[1757427393179,3.10242927,4328.2,4328.1,1e-08]
[1757427393380,12.33931103,4328.2,4328.1,1e-08]
[1757427393536,10.08681103,4328.2,4328.1,1e-08]